{"text_format":"1","workbook":"xlsx","n_sheets":2,"sheets":["Binds","Setup"],"not_rendered":{"charts":0,"images":0,"macros":1,"external_links":0,"defined_names":7,"comments":1,"pivot_tables":0},"unopened":[],"bounds":{"document_bytes":16777216,"sheet_cells":100000,"rows_first":2000,"rows_last":500,"rows_between":2000,"halvings":0,"cell_chars":16384,"cell_head_chars":4096},"cells_cut":0,"cells_raw":0,"read":"whole","date_system":"1900"}

{"sheet":"Binds","index":0,"n_rows":247,"n_cols":7,"rows_kept":247,"cut":false,"hidden":false,"merged":[[4,0,4,3],[2,0,2,3]]}
["Master Group Bind List"]
[]
["See the Setup sheet for the bind key and targeting delimiters used in the Bind Formulas\n*This spreadsheet has a custom function called Join() used to pivot the Bind Values in a range with a delmiter to come up with the overall text bind.*"]
[]
["* Generic Delimiter (no keywords)\n** has a chain to the next bind in the series (or ends the chain)\nNOTE: The binds without Keywords use longer targeting strings to try and avoid friendly targeting"]
[]
[]
["Group","Rank","Bind value","Enemy","Notes","Bind","Bind length (\"<-->\" <=256)"]
["5thColumn",1,"val","Steel Valkyrie",null,{"$f":"CONCATENATE(BindKey,\" \",\"\"\"\",TargetingCommand,Join(C9:C13,KeywordDelimiter),KeywordSuffix,\"\"\"\")","v":"v \"targetcustomnext val enemy alive$$targetcustomnext mek enemy alive$$targetcustomnext vam enemy alive$$targetcustomnext wo enemy alive$$targetcustomnext sha enemy alive\""},{"$f":"LEN(F9)-4","v":167}]
[null,2,"mek","Mek Man","M"]
[null,3,"vam","Vampyr (Mesmirist, Parasyte, Adjutant, Commandant)","B"]
[null,4,"wo","Nightwolf (+Champion, Lycan), Darkwolf, Mk I Wolfpack Robot, MK II Wolfpack, Warwolf","B"]
[null,5,"sha","Nacht Elite Sharpshooter","S"]
["Arachnos*",1,"scout","Bane Spider Scout","M",{"$f":"CONCATENATE(BindKey,\" \",\"\"\"\",TargetingCommand,Join(C14:C24,GenericDelimiter),\"\"\"\")","v":"v \"targetcustomnext scout$$targetcustomnext hunts$$targetcustomnext webm$$targetcustomnext exec$$targetcustomnext nigh$$targetcustomnext fort$$targetcustomnext mist$$targetcustomnext queen$$targetcustomnext toxic$$targetcustomnext disrup$$targetcustomnext mu\""},255]
[null,2,"hunts","Wolf Spider Huntsman","I"]
[null,3,"webm","Crab Spider Webmaster","I"]
[null,4,"exec","Bane Spider Executioner","I"]
[null,5,"nigh","Night Widow"]
[null,6,"fort","Fortuna (+ Seer and Mistress)","B"]
[null,7,"mist","Tarantula Mistress (+ Fortuna Mistress)","M"]
[null,8,"queen","Tarantula Queen","M"]
[null,9,"toxic","Toxic Tarantula","M"]
[null,10,"disrup","Arachnobot Disruptor","M"]
[null,11,"mu","(Striker,  Adept, and Guardian)","B"]
["BanishedPantheon",1,"sh","(Avalanche, Storm, Death) Shaman",null,{"$f":"CONCATENATE(BindKey,\" \",\"\"\"\",TargetingCommand,Join(C25:C27,KeywordDelimiter),KeywordSuffix,\"\"\"\")","v":"v \"targetcustomnext sh enemy alive$$targetcustomnext spirit enemy alive$$targetcustomnext ada enemy alive\""},102]
[null,2,"spirit","Spirit of (Death, Desire, Pain, Sorrow)","B"]
[null,3,"ada","Adamastor","B,GM"]
["Cabal",1,"sto","Storm Maven","D",{"$f":"CONCATENATE(BindKey,\" \",\"\"\"\",TargetingCommand,Join(C28:C34,KeywordDelimiter),KeywordSuffix,\"\"\"\")","v":"v \"targetcustomnext sto enemy alive$$targetcustomnext thu enemy alive$$targetcustomnext min enemy alive$$targetcustomnext sorc enemy alive$$targetcustomnext sid enemy alive$$targetcustomnext amy enemy alive$$targetcustomnext mar enemy alive\""},237]
[null,2,"thu","Thunder Maven","D"]
[null,3,"min","Maven of Ministry","D"]
[null,4,"sorc","Sorceress of the Winds","D,M"]
[null,5,"sid","Bane Sidhe","D"]
[null,6,"amy","Amy Johnson","D,H"]
[null,7,"mar","Mary MacComber","D,M,B"]
["Carnies",1,"ee","Steel Strongman","D,M",{"$f":"CONCATENATE(BindKey,\" \",\"\"\"\",TargetingCommand,Join(C35:C40,KeywordDelimiter),KeywordSuffix,\"\"\"\")","v":"v \"targetcustomnext ee enemy alive$$targetcustomnext ser enemy alive$$targetcustomnext mas enemy alive$$targetcustomnext mis enemy alive$$targetcustomnext pha enemy alive$$targetcustomnext ill enemy alive\""},201]
[null,2,"ser","Dark Servant","B"]
[null,3,"mas","Master Illusionist","M"]
[null,4,"mis","(+Dark) Ring Mistress","D,I,M"]
[null,5,"pha","Phantasm","B"]
[null,6,"ill","Illusionist (+Master Illusionist)","B"]
["Cimerorans",1,"cen","Centurion","D",{"$f":"CONCATENATE(BindKey,\" \",\"\"\"\",TargetingCommand,Join(C41:C46,KeywordDelimiter),KeywordSuffix,\"\"\"\")","v":"v \"targetcustomnext cen enemy alive$$targetcustomnext su enemy alive$$targetcustomnext mi enemy alive$$targetcustomnext cy enemy alive$$targetcustomnext req enemy alive$$targetcustomnext rom enemy alive\""},199]
[null,2,"su","Immunes Surgeon","H"]
[null,3,"mi","Minotaur"]
[null,4,"cy","Cyclops"]
[null,5,"req","Requiem"]
[null,6,"rom","Romulus"]
["CircleOfThorns*",1,"spectral","Spectral (Daemon, Follower, Knight, Daemon Lord), Nerva Spectral Daemon (+Lord)","B",{"$f":"CONCATENATE(BindKey,\" \",\"\"\"\",TargetingCommand,Join(C47:C55,GenericDelimiter),\"\"\"\")","v":"v \"targetcustomnext spectral$$targetcustomnext hordeling$$targetcustomnext hellfrost$$targetcustomnext succus$$targetcustomnext prince$$targetcustomnext vine$$targetcustomnext crystal$$targetcustomnext possess$$targetcustomnext mage\""},229]
[null,2,"hordeling","Hordeling (Lasher,  Berserker, Hurler)","B"]
[null,3,"hellfrost","Hellfrost","B"]
[null,4,"succus","Succubus","B"]
[null,5,"prince","Blade Prince","B"]
[null,6,"vine","Thorn Tree Vine","D"]
[null,7,"crystal","Crystal of (Health, Vitality, Pain)"]
[null,8,"possess","Possessed Scientist (Air, Earth, Fire, Ice + Dark, Earth, Gravity, Psychic)","B"]
[null,9,"mage","Mage (Energy, Force, Life, Soul), Mage & Arch-Mage ( Agony, Death  Madness, Ruin)","E,B (D,H,I,M)"]
["Clockwork",1,"kn","(Cannon, Tesla) Knight","D (I)",{"$f":"CONCATENATE(BindKey,\" \",\"\"\"\",TargetingCommand,Join(C56:C60,KeywordDelimiter),KeywordSuffix,\"\"\"\")","v":"v \"targetcustomnext kn enemy alive$$targetcustomnext du enemy alive$$targetcustomnext pri enemy alive$$targetcustomnext ba enemy alive$$targetcustomnext gear enemy alive\""},166]
[null,2,"du","(Assembler, Cannon, Tesla) Duke","D (I)"]
[null,3,"pri","(Assembler, Cannon, Tesla) Prince","D (I)"]
[null,4,"ba","Babbage","B,GM"]
[null,5,"gear","Gear","B"]
["Consortium",1,"off","Cage Consortium Officer",null,{"$f":"CONCATENATE(BindKey,\" \",\"\"\"\",TargetingCommand,Join(C61:C62,KeywordDelimiter),KeywordSuffix,\"\"\"\")","v":"v \"targetcustomnext off enemy alive$$targetcustomnext cap enemy alive\""},66]
[null,2,"cap","Cage Consortium Captain"]
["Contaminated",1,"contaminated","Contaminated (Brawler, Scavenger, Slicer, Thug)","B",{"$f":"CONCATENATE(BindKey,\" \",\"\"\"\",TargetingCommand,Join(C63:C63,KeywordDelimiter),KeywordSuffix,\"\"\"\")","v":"v \"targetcustomnext contaminated enemy alive\""},41]
["Council",1,"sharp","Penumbra Elite Sharpshooter","S",{"$f":"CONCATENATE(BindKey,\" \",\"\"\"\",TargetingCommand,Join(C64:C68,KeywordDelimiter),KeywordSuffix,\"\"\"\")","v":"v \"targetcustomnext sharp enemy alive$$targetcustomnext arc enemy alive$$targetcustomnext war enemy alive$$targetcustomnext equ enemy alive$$targetcustomnext wo enemy alive\""},169]
[null,2,"arc","(Nebula, Penumbra, Vortex) (Elite, Cor Leonis) Archon, (Dark Equinox, Galaxy, Ascendant) Archon","M"]
[null,3,"war","MK (I, II) Zenith Warcry"]
[null,4,"equ","Equinox (Parasite, Adjutant, Archon), Dark Equinox Archon","B"]
[null,5,"wo","Eclipse Nightwolf (Champion), Darkwolf","B"]
["Crey*",1,"cryo","Crey Cryo Tank, Chief Cryo Scientist","B (Tank),D",{"$f":"CONCATENATE(BindKey,\" \",\"\"\"\",TargetingCommand,Join(C69:C77,GenericDelimiter),\"\"\"\")","v":"v \"targetcustomnext cryo$$targetcustomnext voltaic$$targetcustomnext jugger$$targetcustomnext unit$$targetcustomnext sharp$$targetcustomnext protec$$targetcustomnext inoid$$targetcustomnext medic$$targetcustomnext genet\""},216]
[null,2,"voltaic","Crey Voltaic Tank","B,D,M"]
[null,4,"jugger","Crey Juggernaut","LT,M"]
[null,3,"unit","Crey Crisis Unit","LT,I,M"]
[null,5,"sharp","Special Agent Sharpshooter","S"]
[null,6,"protec","(Crey, Paragon) Protector (Elite), Burn Protector","B,BO,D(,M)"]
[null,7,"inoid","Scorpinoid (Trooper, Stinger, Deathstalker)","LT,M"]
[null,8,"medic","Medic","H"]
[null,9,"genet","Geneticist","R"]
["DevouringEarth*",1,"blad","Bladegrass, Bladerose","B",{"$f":"CONCATENATE(BindKey,\" \",\"\"\"\",TargetingCommand,Join(C78:C88,GenericDelimiter),\"\"\"\")","v":"v \"targetcustomnext blad$$targetcustomnext raz$$targetcustomnext bloss$$targetcustomnext will$$targetcustomnext devou$$targetcustomnext colon$$targetcustomnext cham$$targetcustomnext cair$$targetcustomnext fungi$$targetcustomnext quartz$$targetcustomnext tre\""},{"$f":"LEN(F78)-4","v":255}]
[null,2,"raz","Razorvine","B"]
[null,3,"bloss","Deathblossom","B"]
[null,4,"will","Will of the Earth","H"]
[null,5,"devou","(Lesser, Greater) Devoured, Devouring Swarm, Devoured Pyriss","(T/),T,EB"]
[null,6,"colon","Lichen Colony","S"]
[null,7,"cham","Spawn Chamber","T"]
[null,8,"cair","Cairn","B"]
[null,9,"fungi","Fungi","B"]
[null,10,"quartz","Quartz","B"]
[null,11,"tre","Tree of Life","B"]
["Family",1,"hit","Marcone Hitman","10+ S",{"$f":"CONCATENATE(BindKey,\" \",\"\"\"\",TargetingCommand,Join(C89:C92,KeywordDelimiter),KeywordSuffix,\"\"\"\")","v":"v \"targetcustomnext hit enemy alive$$targetcustomnext und enemy alive$$targetcustomnext capo enemy alive$$targetcustomnext cons enemy alive\""},136]
[null,2,"und","(Marcone) Underboss","(Bosses B)"]
[null,3,"capo","Capo (Gunner, Muscle), (Marcone) Capo","(Bosses B)"]
[null,4,"cons","(Marcone) Consigliere","(Bosses B)"]
["Freakshow",1,"jui","Juicer (Freak, Chief, Sniper)","D,R",{"$f":"CONCATENATE(BindKey,\" \",\"\"\"\",TargetingCommand,Join(C93:C98,KeywordDelimiter),KeywordSuffix,\"\"\"\")","v":"v \"targetcustomnext jui enemy alive$$targetcustomnext stu enemy alive$$targetcustomnext chi enemy alive$$targetcustomnext cha enemy alive$$targetcustomnext tank enemy alive$$targetcustomnext doc enemy alive\""},203]
[null,2,"stu","Stunner (Freak, Chief), Super Stunner","M,R/D,M,R"]
[null,3,"chi","Chief (Smasher, Swiper), (Juicer, Stunner) Chief","D,R/M,R"]
[null,4,"cha","Champion (Smasher, Swiper)","D,R"]
[null,5,"tank","Tank (Smasher, Swiper), (Noise, Shadow, Sneaky, Rikti Freak Slash) Tank","B,D,R"]
[null,6,"doc","Meat Doctor","D,H,R"]
["Ghosts",1,"spirit","Spirit","B",{"$f":"CONCATENATE(BindKey,\" \",\"\"\"\",TargetingCommand,Join(C99:C101,KeywordDelimiter),KeywordSuffix,\"\"\"\")","v":"v \"targetcustomnext spirit enemy alive$$targetcustomnext apparition enemy alive$$targetcustomnext lost soul enemy alive\""},116]
[null,2,"apparition","Apparition","B"]
[null,3,"lost soul","Lost Soul","B"]
["GoldBrickers",1,"rocketman","Rocketman","B",{"$f":"CONCATENATE(BindKey,\" \",\"\"\"\",TargetingCommand,Join(C102:C104,KeywordDelimiter),KeywordSuffix,\"\"\"\")","v":"v \"targetcustomnext rocketman enemy alive$$targetcustomnext bombardier enemy alive$$targetcustomnext boomer enemy alive\""},116]
[null,2,"bombardier","Bombardier","B,D"]
[null,3,"boomer","Boomer","B,D"]
["Gremlins",1,"Gremlin","Gremlin","B",{"$f":"CONCATENATE(BindKey,\" \",\"\"\"\",TargetingCommand,Join(C105:C106,KeywordDelimiter),KeywordSuffix,\"\"\"\")","v":"v \"targetcustomnext Gremlin enemy alive$$targetcustomnext Deathsurge enemy alive\""},77]
[null,2,"Deathsurge","Deathsurge","B,GM,D,M"]
["Hellions",1,"adr","Adross the Hateful","BO",{"$f":"CONCATENATE(BindKey,\" \",\"\"\"\",TargetingCommand,Join(C107:C112,KeywordDelimiter),KeywordSuffix,\"\"\"\")","v":"v \"targetcustomnext adr enemy alive$$targetcustomnext cin enemy alive$$targetcustomnext mor enemy alive$$targetcustomnext kel enemy alive$$targetcustomnext dam enemy alive$$targetcustomnext gir enemy alive\""},202]
[null,2,"cin","Cinderburn","BO"]
[null,3,"mor","'Duke' Mordrogar","BO"]
[null,4,"kel","3K Kelvin","EB"]
[null,5,"dam","Damned Boss","B"]
[null,6,"gir","Girlfriend from Hell","B"]
["Igneous",1,"magmite","Elder Magmite, Magmite Lord","LT/BO,B",{"$f":"CONCATENATE(BindKey,\" \",\"\"\"\",TargetingCommand,Join(C113:C114,KeywordDelimiter),KeywordSuffix,\"\"\"\")","v":"v \"targetcustomnext magmite enemy alive$$targetcustomnext koago enemy alive\""},72]
[null,2,"koago","Koago","MO"]
["Infected",1,"devolved","Devolved","D,BO",{"$f":"CONCATENATE(BindKey,\" \",\"\"\"\",TargetingCommand,Join(C115:C116,KeywordDelimiter),KeywordSuffix,\"\"\"\")","v":"v \"targetcustomnext devolved enemy alive$$targetcustomnext biopulse enemy alive\""},76]
[null,2,"biopulse","Biopulse","D,BO"]
["Knives",1,"bla","Blade of Artemis","LT",{"$f":"CONCATENATE(BindKey,\" \",\"\"\"\",TargetingCommand,Join(C117:C120,KeywordDelimiter),KeywordSuffix,\"\"\"\")","v":"v \"targetcustomnext bla enemy alive$$targetcustomnext han enemy alive$$targetcustomnext bel enemy alive$$targetcustomnext sis enemy alive\""},134]
[null,2,"han","Hand of Artemis","BO"]
[null,3,"bel","Belfry Green","BO"]
[null,4,"sis","Sister (Asheena, Circe, Hecate, Lethe, Livia, Mercy, Sestra)","BO"]
["Lanaruu",1,"tempest","Tempest Elemental","LT,D",{"$f":"CONCATENATE(BindKey,\" \",\"\"\"\",TargetingCommand,Join(C121:C122,KeywordDelimiter),KeywordSuffix,\"\"\"\")","v":"v \"targetcustomnext tempest enemy alive$$targetcustomnext cyclone enemy alive\""},74]
[null,2,"cyclone","Cyclone Elemental","BO,D,I"]
["Longbow",1,"spe","Longbow Spec-Ops (or is it Spec Ops?)","B,D,I,S",{"$f":"CONCATENATE(BindKey,\" \",\"\"\"\",TargetingCommand,Join(C123:C127,KeywordDelimiter),KeywordSuffix,\"\"\"\")","v":"v \"targetcustomnext spe enemy alive$$targetcustomnext cha enemy alive$$targetcustomnext nul enemy alive$$targetcustomnext off enemy alive$$targetcustomnext war enemy alive\""},168]
[null,2,"cha","Longbow Chaser","B,LT,D"]
[null,3,"nul","Longbow Nullifier","B,LT,D,I,M"]
[null,4,"off","Longbow Officer","B,BO,D,S"]
[null,5,"war","Longbow Warden","B,BO,D/H/I/M/T (depending on type)"]
["Lost",1,"ana","Anathema","LT,I,M",{"$f":"CONCATENATE(BindKey,\" \",\"\"\"\",TargetingCommand,Join(C128:C130,KeywordDelimiter),KeywordSuffix,\"\"\"\")","v":"v \"targetcustomnext ana enemy alive$$targetcustomnext abe enemy alive$$targetcustomnext Pariah enemy alive\""},103]
[null,2,"abe","Aberrant (Eremite, Rector)","B,BO,D,I,M"]
[null,3,"Pariah","Pariah (Anchorite, Prelate)","B,BO,D,I,M"]
["Malta",1,"eng","Operation Engineer","D,I,T",{"$f":"CONCATENATE(BindKey,\" \",\"\"\"\",TargetingCommand,Join(C131:C137,KeywordDelimiter),KeywordSuffix,\"\"\"\")","v":"v \"targetcustomnext eng enemy alive$$targetcustomnext tur enemy alive$$targetcustomnext gun enemy alive$$targetcustomnext sap enemy alive$$targetcustomnext he  enemy alive$$targetcustomnext z enemy alive$$targetcustomnext kr enemy alive\""},233]
[null,2,"tur","Auto Turret","annoying"]
[null,3,"gun","Gunslinger","LT/BO,D,I,T"]
[null,4,"sap","Sapper","D"]
[null,5,"he ","Hercules Class Titan","B,LT,D,I (damage 2 to 50% health near each other, they merge into a Zeus)"]
[null,6,"z","Zeus Class Titan","B,BO"]
[null,7,"kr","Kronos Class Titan","B,GM,D,I"]
["Nemesis",1,"come","(Subaltern, Lance Corporal, Lance Sgt, Sergeant Major, Lieutenant, Captain, Colonel) Comet","S,D",{"$f":"CONCATENATE(BindKey,\" \",\"\"\"\",TargetingCommand,Join(C138:C142,KeywordDelimiter),KeywordSuffix,\"\"\"\")","v":"v \"targetcustomnext come enemy alive$$targetcustomnext tir enemy alive$$targetcustomnext hul enemy alive$$targetcustomnext fa enemy alive$$targetcustomnext sur enemy alive\""},{"$f":"LEN(F138)-4","v":168}]
[null,2,"tir","(Subaltern, Lance Corporal, Lance Sgt, Sergeant Major, Lieutenant, Captain, Colonel) Tirailleur","S,D"]
[null,3,"hul","War Hulk","BO"]
[null,4,"fa","Fake Nemesis","B,BO"]
[null,5,"sur","(Armiger, Chasseur, Lancer) Surgeon","H"]
["Outcasts*",1,"torch","Outcast Torch","annoying",{"$f":"CONCATENATE(BindKey,\" \",\"\"\"\",TargetingCommand,Join(C143:C152,GenericDelimiter),\"\"\"\")","v":"v \"targetcustomnext torch$$targetcustomnext scorch$$targetcustomnext cooler$$targetcustomnext chill$$targetcustomnext match$$targetcustomnext freez$$targetcustomnext voltaic$$targetcustomnext shock$$targetcustomnext lead$$targetcustomnext frostf\""},242]
[null,2,"scorch","(Lead) Scorcher","LT, annoying"]
[null,3,"cooler","Outcast Cooler","D"]
[null,4,"chill","Chiller","LT,D"]
[null,5,"match","Match","LT,D"]
[null,6,"freez","(Lead) Freezer","LT,D (I)"]
[null,7,"voltaic","Volt","LT,D"]
[null,8,"shock","(Lead) Shocker","LT,D,I"]
[null,9,"lead","Lead (Brick, Freezer, Scorcher, Shocker)","BO,D,I (except Brick)"]
[null,10,"frostf","Frostfire","EB"]
["Prisoners",1,"prisoner","Prisoner","B",{"$f":"CONCATENATE(BindKey,\" \",\"\"\"\",TargetingCommand,Join(C153:C153,KeywordDelimiter),KeywordSuffix,\"\"\"\")","v":"v \"targetcustomnext prisoner enemy alive\""},37]
["RedCaps",1,"fiend","Fiend","BO,D",{"$f":"CONCATENATE(BindKey,\" \",\"\"\"\",TargetingCommand,Join(C154:C156,KeywordDelimiter),KeywordSuffix,\"\"\"\")","v":"v \"targetcustomnext fiend enemy alive$$targetcustomnext snap enemy alive$$targetcustomnext jack enemy alive\""},104]
[null,2,"snap","Snaptooth","B,EB,D"]
[null,3,"jack","Jack in Irons","B,GM,D"]
["Rikti**",1,"mo","(Wild, Vicious) Rikti Monkey","B",{"$f":"CONCATENATE(BindKey,\" \",\"\"\"\",TargetingCommand,Join(C157:C164,AliveOnlyDelimiter),AliveOnlySuffix,\"\"\"\")","v":"v \"targetcustomnext mo alive$$targetcustomnext ist alive$$targetcustomnext gua alive$$targetcustomnext gun alive$$targetcustomnext pri alive$$targetcustomnext bom alive$$targetcustomnext sui alive$$targetcustomnext com alive\""},221]
[null,2,"ist","Chief (Mentalist, Mesmerist)","LT,BO,D,I,M"]
[null,3,"gua","Guardian","LT,H"]
[null,null,"gun","Headman Gunman","LT,D,T"]
[null,4,"pri","Rikti Priest","BO,H"]
[null,5,"bom","A Bomb","B,EB,D"]
[null,6,"sui","Heavy Assault Suit","B,EB,D"]
[null,7,"com","Communications Officer","T (summons portals)"]
["Rularuu",1,"hon","Honored Brute","BO,D",{"$f":"CONCATENATE(BindKey,\" \",\"\"\"\",TargetingCommand,Join(C165:C170,KeywordDelimiter),KeywordSuffix,\"\"\"\")","v":"v \"targetcustomnext hon enemy alive$$targetcustomnext obs enemy alive$$targetcustomnext opp enemy alive$$targetcustomnext rlo enemy alive$$targetcustomnext ers enemy alive$$targetcustomnext nob enemy alive\""},202]
[null,2,"obs","Observer","LT,D,I"]
[null,3,"opp","Wisp Oppressor","LT,D,I"]
[null,4,"rlo","Wisp Overlord","BO,D,I"]
[null,5,"ers","Overseer","B,BO,D,I,T (summon Sentries)"]
[null,6,"nob","Noble Brute","LT,H"]
["Scrapyard",1,"enr","Enraged Miner","B",{"$f":"CONCATENATE(BindKey,\" \",\"\"\"\",TargetingCommand,Join(C171:C176,KeywordDelimiter),KeywordSuffix,\"\"\"\")","v":"v \"targetcustomnext enr enemy alive$$targetcustomnext dem enemy alive$$targetcustomnext for enemy alive$$targetcustomnext sea enemy alive$$targetcustomnext spi enemy alive$$targetcustomnext scr enemy alive\""},202]
[null,2,"dem","Demolitionist","B,LT,D,M"]
[null,3,"for","Foreman","B,BO,M,T (summon enraged miners)"]
[null,4,"sea","The Sea Witch","B,BO/EB,D,M"]
[null,5,"spi","Spinnerette","EB,D,H,I"]
[null,6,"scr","Ghost of Scrapyard","B,GM,D,M"]
["SilverMantisTF1***",1,"po","Porter","D,T",{"$f":"CONCATENATE(BindKey,\" \",\"\"\"\",TargetingCommand,Join(C177:C180,KeywordDelimiter),KeywordSuffix,\"\"\"\")","v":"v \"targetcustomnext po enemy alive$$targetcustomnext lee enemy alive$$targetcustomnext li enemy alive$$targetcustomnext art enemy alive\""},132]
[null,2,"lee","Captain Lee","LT,D"]
[null,3,"li","Master Li","BO,D"]
[null,4,"art","Tsoo Tattoo Artist","target to kidnap"]
[null,5,"fo","Force Field Generator","B,F,E"]
["SilverMantisTF2***",1,"po","Porter","D,T",{"$f":"CONCATENATE(BindKey,\" \",\"\"\"\",TargetingCommand,Join(C182:C185,KeywordDelimiter),KeywordSuffix,\"\"\"\")","v":"v \"targetcustomnext po enemy alive$$targetcustomnext adams enemy alive$$targetcustomnext hubbins enemy alive$$targetcustomnext fo enemy alive\""},138]
[null,2,"adams","Captain Adams","LT,D"]
[null,3,"hubbins","Anchorite Hubbins","BO,D,I,M"]
[null,4,"fo","Force Field Generator","B,F,E"]
["SilverMantisTF3***",1,"po","Porter","D,T",{"$f":"CONCATENATE(BindKey,\" \",\"\"\"\",TargetingCommand,Join(C186:C190,KeywordDelimiter),KeywordSuffix,\"\"\"\")","v":"v \"targetcustomnext po enemy alive$$targetcustomnext tanner enemy alive$$targetcustomnext lotus enemy alive$$targetcustomnext bomb enemy alive$$targetcustomnext fo enemy alive\""},172]
[null,3,"tanner","Captain Tanner","LT,D"]
[null,4,"lotus","Lotus.xls","D,R"]
[null,5,"bomb","Sonic Bomb","target to destroy"]
[null,2,"fo","Force Field Generator","B,F,E"]
["SilverMantisTF4***",1,"po","Porter","D,T",{"$f":"CONCATENATE(BindKey,\" \",\"\"\"\",TargetingCommand,Join(C191:C195,KeywordDelimiter),KeywordSuffix,\"\"\"\")","v":"v \"targetcustomnext po enemy alive$$targetcustomnext drake enemy alive$$targetcustomnext tiger enemy alive$$targetcustomnext caps enemy alive$$targetcustomnext fo enemy alive\""},171]
[null,2,"drake","Captain Drake","LT,D"]
[null,3,"tiger","Archon Tiger","BO,D,I"]
[null,4,"caps","Capsule","target to destroy"]
[null,5,"fo","Force Field Generator","B,F,E"]
["SilverMantisTF5***",1,"po","Porter","D,T",{"$f":"CONCATENATE(BindKey,\" \",\"\"\"\",TargetingCommand,Join(C196:C198,KeywordDelimiter),KeywordSuffix,\"\"\"\")","v":"v \"targetcustomnext po enemy alive$$targetcustomnext duray enemy alive$$targetcustomnext fo enemy alive\""},100]
[null,2,"duray","Colonel Duray","AV"]
[null,3,"fo","Force Field Generator","B,F,E"]
["Skulls",1,"bon","Bone Daddy","B,D",{"$f":"CONCATENATE(BindKey,\" \",\"\"\"\",TargetingCommand,Join(C199:C204,KeywordDelimiter),KeywordSuffix,\"\"\"\")","v":"v \"targetcustomnext bon enemy alive$$targetcustomnext dol enemy alive$$targetcustomnext wal enemy alive$$targetcustomnext che enemy alive$$targetcustomnext mor enemy alive$$targetcustomnext vel enemy alive\""},202]
[null,2,"dol","Death Doll","B,D,I"]
[null,3,"wal","Death Walker","B,D,I"]
[null,4,"che","Chernobog","AV,D,I"]
[null,5,"mor","Morana","AV,D,I"]
[null,6,"vel","Veles","AV,D,T (summons Grave Knight, Ghost, Lich)"]
["SkyRaiders",1,"sk","Sky Skiff","B",{"$f":"CONCATENATE(BindKey,\" \",\"\"\"\",TargetingCommand,Join(C205:C208,KeywordDelimiter),KeywordSuffix,\"\"\"\")","v":"v \"targetcustomnext sk enemy alive$$targetcustomnext po enemy alive$$targetcustomnext eng enemy alive$$targetcustomnext fo enemy alive\""},{"$f":"LEN(F205)-4","v":131}]
[null,2,"po","Porter","D,T"]
[null,3,"eng","Raider Engineer","D,T (summons Force Field Generator)"]
[null,4,"fo","Force Field Generator","B,F,E"]
["SpectralPirates",1,"hau","Night Haunt","B,D",{"$f":"CONCATENATE(BindKey,\" \",\"\"\"\",TargetingCommand,Join(C209:C212,KeywordDelimiter),KeywordSuffix,\"\"\"\")","v":"v \"targetcustomnext hau enemy alive$$targetcustomnext ter enemy alive$$targetcustomnext han enemy alive$$targetcustomnext phi enemy alive\""},134]
[null,2,"ter","Night Terror, Red Terror","B,D/EB,D,I"]
[null,3,"han","Red Hand","B,BO,D,I"]
[null,4,"phi","Phil","B,EB,D,I"]
["Trolls",1,"gar","Gardvord","LT",{"$f":"CONCATENATE(BindKey,\" \",\"\"\"\",TargetingCommand,Join(C213:C219,KeywordDelimiter),KeywordSuffix,\"\"\"\")","v":"v \"targetcustomnext gar enemy alive$$targetcustomnext gun enemy alive$$targetcustomnext ju enemy alive$$targetcustomnext enr enemy alive$$targetcustomnext sup enemy alive$$targetcustomnext cal enemy alive$$targetcustomnext ogr enemy alive\""},235]
[null,2,"gun","Trollkin Gunner","D"]
[null,3,"ju","Jutal","LT,D"]
[null,4,"enr","Enraged Troll","B (glowing trolls from Troll Raves)"]
[null,5,"sup","Supa Troll","LT"]
[null,6,"cal","Caliban","B,BO"]
[null,7,"ogr","Ogre","B,BO,M"]
["Tsoo*",1,"blue","Dragon, Eagle, Serpent, Tiger) Blue Ink Man/Lightning Blade","B,D/BO,D,I (Lightning Blade is a gimme)",{"$f":"CONCATENATE(BindKey,\" \",\"\"\"\",TargetingCommand,Join(C220:C229,GenericDelimiter),\"\"\"\")","v":"v \"targetcustomnext blue$$targetcustomnext bronz$$targetcustomnext death$$targetcustomnext yell$$targetcustomnext sorce$$targetcustomnext ancest$$targetcustomnext copp$$targetcustomnext herald$$targetcustomnext lost son$$targetcustomnext cresc\""},240]
[null,2,"bronz","Bronze Leopard","BO"]
[null,3,"death","Death Moon, Death's Head/Lightning Blade","BO,D/BO,D,I (Lightning Blade is a gimme)"]
[null,4,"yell","Dragon, Eagle, Serpent, Tiger) Yellow Ink Man","D,I"]
[null,5,"sorce","Sorcerer","B,LT,D,I,T"]
[null,6,"ancest","Ancestor Spirits","B,LT,I"]
[null,7,"copp","Copper Serpent","BO,D,I"]
[null,8,"herald","Herald","BO,D,I,M"]
[null,9,"lost son","Lost Son","BO,D,I,M"]
[null,10,"cresc","Crescent","BO,D,I,M"]
["Tuatha",1,"champ","Champion","LT,D",{"$f":"CONCATENATE(BindKey,\" \",\"\"\"\",TargetingCommand,Join(C230:C231,KeywordDelimiter),KeywordSuffix,\"\"\"\")","v":"v \"targetcustomnext champ enemy alive$$targetcustomnext bres enemy alive\""},69]
[null,2,"bres","Bres","BO,D,I,M"]
["Vahzilok",1,"ei","(Luminous, Mire, Murk) Eidolon","BO,D",{"$f":"CONCATENATE(BindKey,\" \",\"\"\"\",TargetingCommand,Join(C232:C237,KeywordDelimiter),KeywordSuffix,\"\"\"\")","v":"v \"targetcustomnext ei enemy alive$$targetcustomnext cor enemy alive$$targetcustomnext vah enemy alive$$targetcustomnext fac enemy alive$$targetcustomnext mo enemy alive$$targetcustomnext emb enemy alive\""},200]
[null,3,"cor","Cortex","BO,D,I,M"]
[null,5,"vah","Dr. Vahzilok"," AV,D,M"]
[null,4,"fac","The Facemaker","EB,D,I,R"]
[null,2,"mo","Mortificator","LT,R"]
[null,6,"emb","Embalmed (Cadaver, Abomination)","E (get these first!)"]
["Vandal",1,"hydrant",null,"B (Mayhem missions)",{"$f":"CONCATENATE(BindKey,\" \",\"\"\"\",TargetingCommand,Join(C238:C241,KeywordDelimiter),KeywordSuffix,\"\"\"\")","v":"v \"targetcustomnext hydrant enemy alive$$targetcustomnext mailbox enemy alive$$targetcustomnext newspaper enemy alive$$targetcustomnext phone enemy alive\""},150]
[null,2,"mailbox",null,"B (Mayhem missions)"]
[null,3,"newspaper",null,"B (Mayhem missions)"]
[null,4,"phone",null,"B (Mayhem missions)"]
["Warriors",null,"bru","Bruiser","M",{"$f":"CONCATENATE(BindKey,\" \",\"\"\"\",TargetingCommand,Join(C242:C247,KeywordDelimiter),KeywordSuffix,\"\"\"\")","v":"v \"targetcustomnext bru enemy alive$$targetcustomnext slam enemy alive$$targetcustomnext cru enemy alive$$targetcustomnext slas enemy alive$$targetcustomnext sma enemy alive$$targetcustomnext her enemy alive\""},204]
[null,null,"slam","Slammer","LT,M"]
[null,null,"cru","Crusher","LT,M"]
[null,null,"slas","Slasher (Elite)","(B),LT(BO),D"]
[null,null,"sma","Smasher Elite","B,BO,M"]
[null,null,"her","Heracles","EB,D"]

{"sheet":"Setup","index":1,"n_rows":26,"n_cols":3,"rows_kept":26,"cut":false,"hidden":false,"merged":[]}
["Variables:"]
["BindKey:","v"]
["Targeting Command","targetcustomnext ","<-- Note the trailing space"]
["Generic Delimiter:",{"$f":"CONCATENATE(\"$$\",TargetingCommand)","v":"$$targetcustomnext "},"<-- Note the trailing space"]
["Keyword Targeting Suffix"," enemy alive","<-- Note the leading space"]
["Keyword Delimiter:",{"$f":"CONCATENATE(KeywordSuffix,GenericDelimiter)","v":" enemy alive$$targetcustomnext "},"<-- concat of Generic + Keyword Suffix"]
["AliveOnlySuffix"," alive"]
["AliveOnlyDelimiter",{"$f":"CONCATENATE(B7,GenericDelimiter)","v":" alive$$targetcustomnext "}]
[]
["Notes Reference:"]
["B: Counts towards Badge"]
["E: Explodes"]
["R: Rezzer"]
["H: Healer"]
["F: Force Field"]
["M: Mezzer/Disorienter"]
["I: Immober"]
["S: Sniper"]
["D: Debuffer"]
["T: Teleporter (or summoner)"]
["LT: Lieutenant"]
["BO: Boss"]
["EB: Elite Boss"]
["MO: Monster"]
["GM: Giant Monster"]
["AV: Arch-Villian"]